Cogmind - Beta 13 @@@ ROGUE MODE // 2024.04.09 @ 01:55:12 Player: paintbox Result: Self-destructed Performance ------------- Evolutions (1) 500 Regions Visited (5) 1000 Robots Destroyed (43) 215 Value Destroyed (793) 793 Prototype IDs (0) 0 Alien Tech Used (0) 0 Bonus (0) 0 TOTAL SCORE: 2508 Bonus ------- None Cogmind --------- Core Integrity 305/400 Matter 300/300 Energy 265/265 System Corruption 5% Temperature Cool (0) Movement Rolling (130) Ox2 Location -9/Exiles Parts ------- > --- POWER (1) -------- Improved Ion Engine > --- PROPULSION (2) --- Light Treads Compact Wheel > --- UTILITY (2) ------ Large Storage Unit > --- WEAPON (4) ------- Assault Rifle Light Assault Rifle Autogun > --- INVENTORY (15) --- Light Nuclear Core Light Treads Light Treads Wheel Wheel Wheel High-capacity Storage Unit Medium Matter Pod (100) Signal Interpreter Tractor Beam Assault Rifle Heavy Assault Rifle Autogun Rocket Launcher Mining Laser Peak State ------------ > --- POWER ------------ Improved Ion Engine > --- PROPULSION ------- Light Treads Compact Wheel > --- UTILITY ---------- Large Storage Unit Medium Armor Plating > --- WEAPON ----------- Light Assault Rifle Light Assault Rifle Heavy Assault Rifle Rocket Launcher > --- INVENTORY -------- Improved Ion Engine Light Nuclear Core Light Treads Wheel Wheel Heat Sink High-capacity Storage Unit Medium Matter Pod Signal Interpreter Tractor Beam Assault Rifle Assault Rifle Heavy Assault Rifle Autogun Autogun [Rating: 15] Favorites ----------- Power Improved Ion Engine Engine Improved Ion Engine Power Core Light Nuclear Core Propulsion Light Treads Treads Light Treads Leg Aluminum Leg Wheel Compact Wheel Flight Unit Flight Unit Utility Large Storage Unit Device Tractor Beam Storage Large Storage Unit Protection Weapon Shielding Weapon Light Assault Rifle Energy Gun EM Shotgun Ballistic Gun Light Assault Rifle Launcher Rocket Launcher Build | -11 -10 -10 -9 -9 -9 ------- Run | Yrd Mat Min Mat Min Exi Slots Evolved 2 | . . . 2 . . Power . | . . . . . . Propulsion . | . . . . . . Utility . | . . . . . . Weapon 2 | . . . 2 . . Parts Attached 42 | 3 14 2 13 10 . Power 7 | . 3 . 3 1 . Engine 6 | . 3 . 2 1 . Core 1 | . . . 1 . . Reactor . | . . . . . . Propulsion 10 | 2 2 2 1 3 . Treads 3 | 1 1 . 1 . . Leg . | . . . . . . Wheel 6 | 1 . 2 . 3 . Hover . | . . . . . . Flight 1 | . 1 . . . . Utility 8 | . 4 . 3 1 . Device 3 | . 2 . 1 . . Storage 3 | . 1 . 2 . . Processor . | . . . . . . Hackware . | . . . . . . Protection 2 | . 1 . . 1 . Artifact . | . . . . . . Weapon 17 | 1 5 . 6 5 . Energy Gun 2 | . . . 2 . . Energy Cannon . | . . . . . . Ballistic Gun 14 | 1 5 . 4 4 . Ballistic Cannon . | . . . . . . Launcher 1 | . . . . 1 . Special Weapon . | . . . . . . Impact Weapon . | . . . . . . Slashing Weapon . | . . . . . . Piercing Weapon . | . . . . . . Special Melee Weapon . | . . . . . . Unidentified Prototypes . | . . . . . . Parts Lost 9 | . 2 1 1 3 2 Power 1 | . . . . 1 . Propulsion 2 | . . 1 . 1 . Utility 2 | . 1 . . . 1 Weapon 4 | . 1 . 1 1 1 Highest Loss Streak 2 | . 1 1 1 2 2 To Critical Strikes . | . . . . . . Average Slot Usage (%) 96 | . 90 99 99 99 95 Engine 12 | . 14 14 11 10 11 Treads 12 | . 14 14 11 11 11 Wheel 12 | . 14 13 11 10 11 Device 2 | . 5 . . . . Storage 12 | . 14 14 11 11 11 Protection 7 | . . 14 10 10 7 Energy Gun 1 | . . . 4 . . Ballistic Gun 34 | . 28 28 38 43 42 Naked Turns . | . . . . . . Heaviest Build 43 | 14 30 29 37 43 43 Greatest Support 16 | 16 16 16 16 16 16 Greatest Overweight (x) 4 | . 1 1 2 4 2 Average Overweight (x) 1 | . . 1 1 3 2 Largest Inventory Capacity 20 | 8 15 15 20 15 15 Average Capacity 14 | 8 14 15 15 15 15 Most Carried 15 | 6 15 15 15 15 15 Average Carried 14 | 6 14 14 14 14 15 Final Capacity 15 | 8 15 15 15 15 15 Final Carried 15 | 6 15 14 15 15 15 Class Distribution -------------------- 50% | Mutant 39% | Tank 7% | Scavenger-Tank Dominant Class ---------------- Mutant | -10/Materials Mutant | -10/Mines Tank | -9/Materials Tank | -9/Mines Scavenger-Tank | -9/Exiles Resources | -11 -10 -10 -9 -9 -9 ----------- Run | Yrd Mat Min Mat Min Exi Matter Collected 1452 | 225 401 115 324 387 . Remotely 97 | . 59 . . 38 . Salvage Created 1581 | . 597 37 625 322 . Parts 91 | . 38 5 38 10 . Haulers Intercepted 1 | . 1 . . . . Recyclers Shooed 2 | . 2 . . . . Parts Field Recycled . | . . . . . . Retrieved Matter . | . . . . . . Parts Self-Destructed . | . . . . . . Prevented . | . . . . . . Kills | -11 -10 -10 -9 -9 -9 ------- Run | Yrd Mat Min Mat Min Exi Combat Hostiles Destroyed 35 | . 12 3 11 9 . Guns 35 | . 12 3 11 9 . Classes Destroyed 9 | . 7 . 1 1 . Worker 6 | . 1 . 4 1 . Hauler 1 | . 1 . . . . Recycler 5 | . 2 . 1 2 . Operator 1 | . 1 . . . . Watcher 3 | . 1 . 2 . . Swarmer 12 | . 6 3 3 . . Grunt 13 | . 6 . 6 1 . Sentry 2 | . . . 2 . . Assembled 8 | . . . . 8 . Best Kill Streak 6 | . 3 3 6 4 . Combat Bots Only 3 | . 3 3 3 2 . Max Kills in Single Turn 2 | . 2 2 2 1 . Gunslinging 1 | . . 1 1 . . Exploded . | . . . . . . Melee . | . . . . . . Uniques/NPCs Destroyed . | . . . . . . Combat | -11 -10 -10 -9 -9 -9 -------- Run | Yrd Mat Min Mat Min Exi Hostile Shots Fired 158 | . 62 14 34 29 19 Missed 46 | . 13 3 10 13 7 Damage Taken 1573 | . 522 89 266 439 257 Core 154 | . 46 13 30 24 41 Absorbed by Shields . | . . . . . . Redirected to Shielding 48 | . . 9 39 . . Core Remaining (%) 88 | 100 . 76 . . . Volleys Fired 130 | . 58 8 34 30 . Largest 4 | . 2 2 4 4 . Hottest 105 | . 40 40 105 86 . Shots Fired 371 | . 116 16 125 113 1 Gun 370 | . 116 16 125 112 1 Cannon . | . . . . . . Launcher 1 | . . . . 1 . Special . | . . . . . . Kinetic 358 | . 116 16 113 112 1 Thermal . | . . . . . . Explosive 1 | . . . . 1 . Electromagnetic 12 | . . . 12 . . Robot Hit Streak 14 | . 13 2 14 7 . Robot Miss Streak 5 | . 4 3 4 5 1 Penetration Max . | . . . . . . Secondary Targets 4 | . 2 1 1 . . Max Gunslinging Chain 1 | . 1 1 1 . . Shots Hit Robots 203 | . 68 6 77 52 . Core Hits 99 | . 33 3 38 25 . Critical Kills 2 | . 1 . 1 . . Critical Parts Destroyed 1 | . . 1 . . . Critical Strikes 3 | . 1 1 1 . . Destroy 3 | . 1 1 1 . . Melee Attacks . | . . . . . . Impact . | . . . . . . Slashing . | . . . . . . Piercing . | . . . . . . Sneak Attacks . | . . . . . . Combat Hostiles . | . . . . . . Follow-up Attacks . | . . . . . . Damage Inflicted 2205 | . 750 64 795 596 . Guns 2205 | . 750 64 795 596 . Cannons . | . . . . . . Explosions . | . . . . . . Melee . | . . . . . . Ramming . | . . . . . . Kinetic 2073 | . 750 64 663 596 . Thermal . | . . . . . . Explosive . | . . . . . . Electromagnetic 132 | . . . 132 . . Impact . | . . . . . . Slashing . | . . . . . . Piercing . | . . . . . . Highest Corruption 5 | . . . . 5 5 Average Corruption 4 | . . . . 4 5 Corruption Purged . | . . . . . . Corruption Blocked . | . . . . . . Effects 8 | . . . . 7 1 Message Errors 1 | . . . . 1 . Matter Fused 2 | . . . . 2 . Heat Flow Errors 1 | . . . . 1 . Data Loss (minor) 2 | . . . . 2 . Misfires 1 | . . . . . 1 Weapon Failures 1 | . . . . 1 . Overload Shots . | . . . . . . Overflow Damage . | . . . . . . Projectiles . | . . . . . . Explosions . | . . . . . . Melee . | . . . . . . Knockbacks . | . . . . . . Impact . | . . . . . . Kinetic . | . . . . . . Secondary . | . . . . . . Self-Inflicted Damage . | . . . . . . Shots . | . . . . . . Rammed . | . . . . . . Targets Rammed . | . . . . . . Kicked . | . . . . . . Crushed . | . . . . . . Highest Temperature 205 | . 12 . 179 205 . Average Temperature 39 | . 4 . 42 41 . Received Heat Transfer 300 | . 183 . 117 . . Siege Activations . | . . . . . . Robots Corrupted . | . . . . . . Combat Hostiles . | . . . . . . Parts Fried . | . . . . . . Impact Corruptions . | . . . . . . Robots Melted . | . . . . . . Combat Hostiles . | . . . . . . Parts Melted . | . . . . . . Heat Transferred . | . . . . . . Parts Sabotaged . | . . . . . . Parts Stolen . | . . . . . . Parts Stripped . | . . . . . . Power Chain Reactions . | . . . . . . Alert | -11 -10 -10 -9 -9 -9 ------- Run | Yrd Mat Min Mat Min Exi Peak Influence 384 | . 191 75 384 173 . Initial 96 | . . 15 29 96 . Average 126 | . 101 46 202 116 . Maximum Alert Level 1 | . . . 1 . . Low Security (%) 82 | 100 100 100 41 100 . Level 1 17 | . . . 58 . . Level 2 . | . . . . . . Level 3 . | . . . . . . Level 4 . | . . . . . . Level 5 . | . . . . . . High Security . | . . . . . . Max Security . | . . . . . . Squads Dispatched 3 | . 2 . . 1 . Investigation . | . . . . . . Extermination . | . . . . . . Reinforcement 3 | . 2 . . 1 . Assault . | . . . . . . Garrison . | . . . . . . Intercept . | . . . . . . Searches Triggered . | . . . . . . Construction Impeded 1 | . . . . 1 . Haulers Reinforced . | . . . . . . Active Scanning Responses . | . . . . . . Cargo Convoy Interrupts . | . . . . . . Stealth | -11 -10 -10 -9 -9 -9 --------- Run | Yrd Mat Min Mat Min Exi Distress Signals 4 | . 3 . 1 . . Communications Jammed . | . . . . . . Distress Signals . | . . . . . . Times Spotted 68 | . 21 3 23 14 7 Peak Tracking Total 9 | . 4 3 5 7 9 Tactical Retreats 4 | . . . 3 1 . Traps | -11 -10 -10 -9 -9 -9 ------- Run | Yrd Mat Min Mat Min Exi Traps Triggered . | . . . . . . Indirectly . | . . . . . . Trap Hack Attempts . | . . . . . . Triggered . | . . . . . . Disarmed . | . . . . . . Reprogrammed . | . . . . . . Reused . | . . . . . . Traps Extracted . | . . . . . . Installed . | . . . . . . Triggered . | . . . . . . Machines | -11 -10 -10 -9 -9 -9 ---------- Run | Yrd Mat Min Mat Min Exi Machines Disabled 2 | . . . . 1 1 Max in Single Turn 1 | . . . . 1 . Machines Repaired . | . . . . . . Machines Dismantled . | . . . . . . Machines Sabotaged . | . . . . . . Overloaded Fab Kills . | . . . . . . Hacking | -11 -10 -10 -9 -9 -9 --------- Run | Yrd Mat Min Mat Min Exi Machines Accessed 6 | . 5 . 1 . . Terminals 5 | . 4 . 1 . . Fabricators . | . . . . . . Repair Stations . | . . . . . . Recycling Units 1 | . 1 . . . . Scanalyzers . | . . . . . . Garrison Access . | . . . . . . Total Hacks 17 | . 15 . 2 . . Successful 9 | . 8 . 1 . . Failed 8 | . 7 . 1 . . Catastrophic 4 | . 3 . 1 . . Database Lockouts . | . . . . . . Manual 12 | . 10 . 2 . . Terminals 16 | . 14 . 2 . . Fabricators . | . . . . . . Repair Stations . | . . . . . . Recycling Units 1 | . 1 . . . . Scanalyzers . | . . . . . . Garrison Access . | . . . . . . Terminal Hacks 4 | . 4 . . . . Part Schematic 1 | . 1 . . . . Branch Access Points 1 | . 1 . . . . Alert Level 1 | . 1 . . . . Locate Traps 1 | . 1 . . . . Fabricator Hacks . | . . . . . . Repair Station Hacks . | . . . . . . Recycling Unit Hacks 1 | . 1 . . . . Report Inventory 1 | . 1 . . . . Scanalyzer . | . . . . . . Garrison Access Hacks . | . . . . . . Unauthorized Hacks 4 | . 3 . 1 . . Terminals 4 | . 3 . 1 . . Botnet 4 | . 3 . 1 . . Fabricators . | . . . . . . Repair Stations . | . . . . . . Recycling Units . | . . . . . . Scanalyzers . | . . . . . . Garrison Access . | . . . . . . Data Cores Recovered . | . . . . . . Used . | . . . . . . Hacking Detections 3 | . 2 . 1 . . Full Trace Events . | . . . . . . Feedback Events . | . . . . . . Feedback Blocked . | . . . . . . Robot Schematics Acquired . | . . . . . . Robots Built . | . . . . . . Authchips . | . . . . . . Time . | . . . . . . Total Robot Build Rating . | . . . . . . Part Schematics Acquired 1 | . 1 . . . . Parts Built . | . . . . . . Authchips . | . . . . . . Time . | . . . . . . Total Part Build Rating . | . . . . . . Parts Repaired . | . . . . . . Time . | . . . . . . Parts Recycled . | . . . . . . Recycled Matter . | . . . . . . Retrieved Matter . | . . . . . . Retrieved Components . | . . . . . . Parts Scanalyzed . | . . . . . . Part Schematics Acquired . | . . . . . . Parts Damaged . | . . . . . . Bothacking | -11 -10 -10 -9 -9 -9 ------------ Run | Yrd Mat Min Mat Min Exi Used RIF Installer . | . . . . . . Robots Hacked . | . . . . . . Non-combat . | . . . . . . Combat . | . . . . . . Robot Hacks Applied . | . . . . . . Relay Couplers Released . | . . . . . . Fabnet Peak Effective % . | . . . . . . Robots Rewired . | . . . . . . Allies Hacked . | . . . . . . Hacks Repelled . | . . . . . . Allies | -11 -10 -10 -9 -9 -9 -------- Run | Yrd Mat Min Mat Min Exi Total Allies 1 | . . . . 1 . Largest Group 1 | . . . . 1 1 Highest-Rated Group 31 | . . . . 31 31 Highest-Rated Ally 31 | . . . . 31 31 Total Orders . | . . . . . . Ally Attacks 2 | . . . . . 2 Total Damage . | . . . . . . Kills . | . . . . . . Allies Corrupted . | . . . . . . Allies Melted . | . . . . . . Intel | -11 -10 -10 -9 -9 -9 ------- Run | Yrd Mat Min Mat Min Exi Robot Analysis Total . | . . . . . . Derelict Logs Recovered 4 | . . 3 . 1 . Drone Launches . | . . . . . . Drone Recoveries . | . . . . . . Exploration | -11 -10 -10 -9 -9 -9 ------------- Run | Yrd Mat Min Mat Min Exi Turns Passed 2259 | 7 832 291 660 402 67 Spaces Moved 1244 | 3 496 226 298 170 51 Core . | . . . . . . Treads . | . . . . . . Legs . | . . . . . . Wheels 1244 | 3 496 226 298 170 51 Hover . | . . . . . . Flight . | . . . . . . Fastest Speed 100 | 100 100 115 115 130 130 Average Speed 121 | 100 114 115 128 135 130 Slowest Speed 140 | 100 115 115 130 140 130 Overloaded Moves . | . . . . . . Propulsion Burnouts . | . . . . . . Robots Hopped . | . . . . . . Cave-ins Triggered . | . . . . . . Exploration Rate (%) 35 | 2 70 52 37 38 12 Regions Visited 5 Branch Regions 3 Pre-discovered Areas . | . . . . . . Known Exits Taken 1 | . 1 . . . . Unknown Exits Taken 4 | 1 . 1 1 1 . Scrap Searched 2 | . . 1 . 1 . Spaces Dug . | . . . . . . Terrain Destroyed 9 | . . . . 9 . Melee . | . . . . . . Projectile . | . . . . . . AOE 9 | . . . . 9 . Terrain Rammed . | . . . . . . Walls Destroyed . | . . . . . . Machines Disabled . | . . . . . . Actions | -11 -10 -10 -9 -9 -9 --------- Run | Yrd Mat Min Mat Min Exi Total 1740 | 5 656 242 505 281 51 Wait 270 | . 55 7 145 63 . Move 1239 | 2 495 225 297 169 51 Hop . | . . . . . . Pick Up 32 | . 20 . 7 5 . Fast Attach 5 | . 3 . 2 . . Attach 8 | . 2 1 2 3 . Detach 1 | . 1 . . . . Swap 29 | 3 9 1 9 7 . Drop 26 | . 13 . 9 4 . Fire 130 | . 58 8 34 30 . Melee . | . . . . . . Ram . | . . . . . . Kick . | . . . . . . Crush . | . . . . . . Escape Stasis . | . . . . . . Rewire . | . . . . . . Trap . | . . . . . . Miscellaneous . | . . . . . . Route ------- -11/Scrapyard -10/Materials (discovered 3 exits: *Mat / *Min x2) -10/Mines (discovered 2 exits: *Mat / Sub) -9/Materials (discovered 2 exits: [*Min x2]) -9/Mines (discovered 2 exits: [*Mat] / [*Exi]) -9/Exiles (discovered 1 exit: [*Min]) History --------- Turn | Location | Event 6 | -11/Scrapyard | Discovered new exit (range 2) 8 | -11/Scrapyard | Entered Materials 300 | -10/Materials | Build established: Mutant 517 | -10/Materials | Discovered new exit (range 3) 615 | -10/Materials | Identified exit to Mines 840 | -10/Materials | Entered Mines 845 | -10/Mines | Met a Derelict bent on vengeance 918 | -10/Mines | Learned Materials trap positions 923 | -10/Mines | Learned Materials garrison access intel 1006 | -10/Mines | Identified exit to Subcaves 1063 | -10/Mines | Discovered new exit (range 12) 1131 | -10/Mines | Entered Materials 1131 | -9/Materials | Evolved 2 slots: Weapon x2 1132 | -9/Materials | Loaded intel: 13 trap records 1361 | -9/Materials | Discovered new exit (range 16) 1452 | -9/Materials | Build established: Tank 1637 | -9/Materials | Discovered new exit (range 9) 1791 | -9/Materials | Entered Mines 1792 | -9/Mines | Assembled infested the area 1799 | -9/Mines | Joined a pair of Derelicts in attacking an 0b10 outpost 2095 | -9/Mines | Learned Materials terminal intel 2112 | -9/Mines | Discovered new exit (range 11) 2166 | -9/Mines | Received a Mining Laser from a helpful Derelict 2186 | -9/Mines | Deemed a non-threat by the Exiles lab entrance 2187 | -9/Mines | Discovered new exit (range 5) 2193 | -9/Mines | Entered Exiles 2193 | -9/Exiles | Accompanied by 1 ally 2212 | -9/Exiles | Discovered new exit (range 15) 2227 | -9/Exiles | Met 8R-AWN 2242 | -9/Exiles | Attacked by the Exiles 2260 | -9/Exiles | Self-destructed Last Messages --------------- 02245_ HV Slug penetrates D0-XRR(g). 02247_ D0-XRR(g) suffers critical hit (Destroy). 02247_ HV Slug penetrates Wall. 02247_ HV Slug penetrates Earth. 02249_ Wall collapses. 02249_ Penetrated by HV Slug. 02249_ HV Slug penetrates Wall. 02249_ Penetrated by HV Slug. 02249_ HV Slug penetrates Wall. 02252_ Penetrated by HV Slug. 02252_ Hvy. Assault Rifle destroyed. 02252_ HV Slug penetrates Wall. 02252_ Penetrated by HV Slug. 02252_ HV Slug penetrates Wall. 02257_ Penetrated by HV Slug. 02257_ HV Slug penetrates Wall. 02257_ Penetrated by HV Slug. 02257_ HV Slug penetrates Wall. 02258_ Rigged Lgt. Fission Core explodes. 02258_ Machine disabled. Map ----- +----------------------------------------------------+ | ?????????????????????????????????????????????????? | | ?????????????????????????????????????????????????? | | ?????????????????????????????????????????????????? | | ?????????????????????????????????????????????????? | | ?????????????????????????????????????????????????? | | ?????????????????????????????????????????????????? | | ?????????????????????????????????????????????????? | | ?????????????????????????????????????????????????? | | ?????????????????????????????????????????????????? | | ?????????????????????????????????????????????????? | | ?????????????????????????????????????????????????? | | ?????????????????????????????????????? ?????????? | | ????????????????????????????????????? < #???????? | | ????????????????????????????????????? ????????? | | ????????????????????????????????????? ????????? | | ????????????????????????????????????# #????????? | | ??????????????????????????????????## ##???????? | | ??????????????????????????????????# #???????? | | ??????????????#####???????????????# #???????? | | ?????????????##" #??????????????## ????????? | | ?????????????#" #?????????????## #?????????? | | ????????????## ##????????????# #?????????? | | ??????????### ##########?### #??????????? | | ??????????# ##;;;;;### #??????????? | | ?????????## # ;# #???????????? | | ?????????# a a a aa@ * ##??????????? | | ?? ## #??????????? | | #### ##?????????? | | ""#?#" ""#;## ###???????? | | #"""##?###;;######## * ###?????? | | #####?????## #??????##### ##????? | | #???????????# #??????????### #????? | | #????????????###????????????### #????? | | ? ""??????????????????????????????### #????? | | ? "????????????????????????????????#" ##???? | | ?????????????????????????????????????#### ###?? | | ????????????????????????????????????????# ##? | | ????????????????????????????????????????## ## | | ?????????????????????????????????????????### | | ???????????????????????????????????????????# # | | ???????????????????????????????????????????## ## | | ????????????????????????????????????????????#####? | | ?????????????????????????????????????????????????? | | ?????????????????????????????????????????????????? | | ?????????????????????????????????????????????????? | | ?????????????????????????????????????????????????? | | ?????????????????????????????????????????????????? | | ?????????????????????????????????????????????????? | | ?????????????????????????????????????????????????? | | ?????????????????????????????????????????????????? | +----------------------------------------------------+ Best States ------------- Heat Dissipation 28 Energy Generation 12 Energy Capacity 265 Matter Stores 300 Matter Capacity 300 Sight Range 16 Terrain Scan Density 10 ECM Strength 1 Armor Coverage 225 Weapon Shielding 33 Evasion (%) 40 Item Schematics ----------------- Hcp. Storage Unit | -10/Materials | Hacked Robot Schematics ------------------ None Fabricated ------------ Nothing Alien Tech Used ----------------- None Achievements -------------- I Survived The Infestation Challenges ------------ None Game ------ Seed MachineFocalThruster Manual? 0 Play Time 01:33:19 Cumulative 34.7 hours Start 2024.04.08 @ 14:45:29 End 2024.04.09 @ 01:55:12 Sessions 2 Manual Loads 0 Difficulty Rogue Special Mode None Game No. 10 Rogue 10 Adventurer 0 Explorer 0 Win Type - Total 0 Types 0/0/0/0/0/0/0/0/0 Lore% 18 Gallery% 19 Achievement% 16 Wizard Run 0 Options --------- Layout 0 ASCII 0 Keyboard 0 Movement Vi Keybinds 0 Fullscreen 0 Font 18/VGA_Max Map View 110x65 Zoom Use 0% Tactical HUD 1 Map Filters NONE Filters NONE Steam 0 RUN: 7aed5981-46f8-44a5-893e-6c9476c51d89